[Event "22nd Hoogeveen Open 2018"]
[Site "Hoogeveen"]
[Date "2018.10.23"]
[Round "5"]
[White "Rakshitta, Ravi"]
[Black "Buckels, Valentin"]
[Result "0-1"]
[ECO "C54"]
[WhiteElo "2160"]
[BlackElo "2413"]
[Annotator "ChessBase"]
[PlyCount "76"]
[EventDate "2018.10.20"]
[EventType "swiss"]
[EventCountry "NED"]
[SourceTitle "playchess.com"]
[Source "ChessBase"]
[SourceQuality "1"]
[TimeControl "40/5400+30:1800+30"]

1. e4 {[%emt 0:01:12]} e5 {[%emt 0:00:00]} 2. Nf3 {[%emt 0:00:08]} Nc6 {[%emt 0:00:05]} 3. Bc4 {[%emt 0:00:11]} Bc5 {[%emt 0:00:06]} 4. c3 {[%emt 0:00:15]} Nf6 {[%emt 0:00:07]} 5. d3 {[%emt 0:00:08]} d6 {[%emt 0:00:40]} 6. Bb3 {[%emt 0:00:12]} a5 {[%emt 0:01:19]} 7. h3 {[%emt 0:01:14]} h6 {[%emt 0:00:47]} 8. Nbd2 {[%emt 0:01:09]} O-O {[%emt 0:00:26]} 9. g4 {[%emt 0:00:28]} Nh7 {[%emt 0:25:10]} 10. Nf1 {[%emt 0:00:34]} Be6 {[%emt 0:00:37]} 11. Bc2 {[%emt 0:01:14]} d5 {[%emt 0:02:33]} 12. Qe2 {[%emt 0:00:12]} b5 {[%emt 0:04:22]} 13. Ng3 {[%emt 0:02:17]} Re8 {[%emt 0:11:18]} 14. Bd2 {[%emt 0:09:13]} Be7 {[%emt 0:05:14]} 15. O-O-O {[%emt 0:06:49]} d4 {[%emt 0:01:09]} 16. Rdg1 {[%emt 0:11:43]} dxc3 {[%emt 0:02:57]} 17. bxc3 {[%emt 0:02:37]} Ba3+ {[%emt 0:00:15]} 18. Kd1 {[%emt 0:00:09]} b4 {[%emt 0:04:19]} 19. g5 {[%emt 0:03:53]} bxc3 {[%emt 0:03:48]} 20. Bxc3 {[%emt 0:00:15]} hxg5 {[%emt 0:03:41]} 21. Nxe5 {[%emt 0:08:36]} Nxe5 {[%emt 0:04:40]} 22. Bxe5 {[%emt 0:00:02]} Bd6 {[%emt 0:03:04]} 23. Bc3 {[%emt 0:02:01]} Bb4 {[%emt 0:01:20]} 24. Ba1 {[%emt 0:00:29]} Bc5 {[%emt 0:00:47]} 25. f4 {[%emt 0:06:09]} Bd4 {[%emt 0:08:15]} 26. Bxd4 {[%emt 0:00:09]} Qxd4 {[%emt 0:00:05]} 27. fxg5 {[%emt 0:00:38]} Nf8 {[%emt 0:01:21]} 28. Rf1 {[%emt 0:11:37]} Ng6 {[%emt 0:00:37]} 29. Nf5 {[%emt 0:02:53]} Bxf5 {[%emt 0:01:48]} 30. Rxf5 {[%emt 0:00:07]} Qa1+ {[%emt 0:01:27]} 31. Kd2 {[%emt 0:00:02]} Qxh1 {[%emt 0:00:21]} 32. Bb3 {[%emt 0:00:11]} Re7 {[%emt 0:01:36]} 33. Qh5 {[%emt 0:00:44]} Qh2+ {[%emt 0:01:45]} 34. Kd1 {[%emt 0:00:33]} Ra6 {[%emt 0:01:14]} 35. Rb5 {[%emt 0:00:40]} c5 {[%emt 0:01:49]} 36. d4 {[%emt 0:01:05]} Rxe4 {[%emt 0:01:34]} 37. Rb7 {[%emt 0:01:42]} Rxd4+ {[%emt 0:00:15]} 38. Kc1 {[%emt 0:00:18]} Qh1+ {[%emt 0:00:10]} 0-1

[Event "22nd Hoogeveen Open 2018"]
[Site "Hoogeveen"]
[Date "2018.10.23"]
[Round "5"]
[White "Rubingh, Otto"]
[Black "Ojas Kulkarni"]
[Result "0-1"]
[ECO "A47"]
[WhiteElo "2154"]
[BlackElo "2254"]
[Annotator "NA"]
[PlyCount "30"]
[EventDate "2018.10.20"]
[EventType "swiss"]
[EventCountry "NED"]
[SourceTitle "playchess.com"]
[Source "ChessBase"]
[SourceQuality "1"]
[TimeControl "40/5400+30:1800+30"]

{[%evp 8,25,21,32767,32767,32767,32767,-3,-16,-31,-6,-55,-35,-23,-18,-24,-33,-17,-8,-14]} 1. d4 {[%emt 0:05:50]} Nf6 {[%emt 0:00:00]} 2. Nf3 {[%emt 0:00:32]} b6 {[%emt 0:00:17]} 3. Bf4 {[%emt 0:00:27]} Bb7 {[%emt 0:00:13]} 4. e3 {[%emt 0:00:14]} g6 {[%emt 0:00:14]} 5. h3 {[%emt 0:00:37]} Bg7 {[%emt 0:00:05]} 6. Nbd2 {[%emt 0:00:14]} O-O {[%emt 0:00:08]} 7. Bd3 {[%emt 0:01:32] LiveBook: 4 Games} d6 {[%emt 0:00:18]} 8. Qe2 {[%emt 0:01:41]} Nbd7 {[%emt 0:00:40]} 9. c3 {[%emt 0:01:42]} Re8 {[%emt 0:01:57]} (9... e5 $5 10. Bg5 h6 11. Bxf6 Nxf6 12. dxe5 dxe5 $15) 10. e4 {[%emt 0:01:43]} e5 {[%emt 0:02:33]} 11. dxe5 $1 {[%emt 0:00:21]} dxe5 {[%emt 0:02:02]} 12. Be3 {[%emt 0:00:29]} Qe7 {[%emt 0:02:17]} 13. Ba6 $11 {[%emt 0:03:00]} Bxa6 {[%emt 0:14:55]} 14. Qxa6 {[%emt 0:02:22]} Nh5 {[%emt 0:00:16]} 15. Qc4 {[%emt 0:09:39]} Nf8 {[%emt 0:02:33]} 0-1

[Event "22nd Hoogeveen Open 2018"]
[Site "Hoogeveen"]
[Date "2018.10.23"]
[Round "5"]
[White "Clemens, Adrian"]
[Black "Klaren, Duncan"]
[Result "1/2-1/2"]
[ECO "E81"]
[WhiteElo "2153"]
[BlackElo "1950"]
[Annotator "NA"]
[PlyCount "85"]
[EventDate "2018.10.20"]
[EventType "swiss"]
[EventCountry "NED"]
[SourceTitle "playchess.com"]
[Source "ChessBase"]
[SourceQuality "1"]
[TimeControl "40/5400+30:1800+30"]

1. d4 {[%emt 0:00:00]} Nf6 {[%emt 0:00:00]} 2. c4 {[%emt 0:00:00]} g6 {[%emt 0:00:00]} 3. Nc3 {[%emt 0:00:01]} Bg7 {[%emt 0:00:00]} 4. e4 {[%emt 0:01:34]} d6 {[%emt 0:00:00]} 5. f3 {[%emt 0:04:19]} O-O {[%emt 0:00:07]} 6. Bg5 {[%emt 0:01:06]} c5 {[%emt 0:01:01] LiveBook: 1075 Games} 7. d5 {[%emt 0:00:00]} Nbd7 {[%emt 0:01:11]} 8. Nh3 {[%emt 0:01:04]} Ne5 {[%emt 0:02:19]} 9. Nf2 {[%emt 0:01:36]} e6 {[%emt 0:02:22]} ({Better is} 9... Nfd7 $14) 10. Be2 {[%emt 0:05:48]} (10. f4 $18) 10... exd5 {[%emt 0:02:26]} 11. cxd5 {[%emt 0:00:08]} a6 {[%emt 0:00:11]} 12. a4 {[%emt 0:00:15]} Qc7 {[%emt 0:00:55]} 13. O-O {[%emt 0:02:25]} Rb8 {[%emt 0:01:52]} 14. Qd2 {[%emt 0:04:56]} c4 {[%emt 0:02:02]} 15. Be3 {[%emt 0:03:12]} Nfd7 {[%emt 0:01:39]} 16. f4 {[%emt 0:07:29]} Nd3 $16 {[%emt 0:02:36]} 17. Nxd3 {[%emt 0:01:46]} cxd3 {[%emt 0:00:07]} 18. Bxd3 {[%emt 0:10:05]} Nc5 {[%emt 0:02:12]} 19. Bc2 {[%emt 0:01:44]} f5 {[%emt 0:04:13]} 20. Bd4 {[%emt 0:08:17]} fxe4 {[%emt 0:03:01]} 21. Nxe4 {[%emt 0:07:42]} Bf5 {[%emt 0:11:45]} 22. Bxg7 {[%emt 0:09:44]} Nxe4 {[%emt 0:07:50]} 23. Bxe4 {[%emt 0:02:59]} Qxg7 {[%emt 0:00:06]} 24. Bf3 {[%emt 0:01:33]} Rbc8 {[%emt 0:04:46]} 25. Rac1 {[%emt 0:01:15]} Qd7 {[%emt 0:06:06]} 26. Qb4 {[%emt 0:05:32]} Qe7 {[%emt 0:02:18]} 27. Qd4 {[%emt 0:00:22]} Rfe8 {[%emt 0:04:19]} 28. a5 {[%emt 0:02:20]} Bd7 {[%emt 0:04:58]} 29. h3 {[%emt 0:05:27]} Qh4 {[%emt 0:02:44]} 30. Qb4 {[%emt 0:03:23]} Qe7 {[%emt 0:05:50]} 31. Qd2 {[%emt 0:04:51]} Qf6 {[%emt 0:01:57]} 32. Rfe1 {[%emt 0:01:02]} Rxe1+ {[%emt 0:01:16]} 33. Rxe1 {[%emt 0:00:07]} Bf5 {[%emt 0:00:03]} 34. Qb4 {[%emt 0:00:57]} Qh4 {[%emt 0:00:46]} 35. Rf1 {[%emt 0:02:03]} Rc2 {[%emt 0:04:07]} 36. Bd1 {[%emt 0:02:01]} Rxg2+ {[%emt 0:02:12]} 37. Kxg2 {[%emt 0:00:17]} Bxh3+ {[%emt 0:00:11]} 38. Kf3 {[%emt 0:00:32]} Bxf1 {[%emt 0:00:05]} 39. Qxd6 {[%emt 0:00:30]} Qh5+ {[%emt 0:00:27]} 40. Kf2 {[%emt 0:00:16]} Qxd1 {[%emt 0:00:46]} 41. Qd8+ {[%emt 0:30:31]} Kg7 {[%emt 0:33:30]} 42. Qe7+ {[%emt 0:00:24]} Kh6 {[%emt 0:01:09]} 43. Qg5+ {[%emt 0:01:02]} 1/2-1/2

[Event "22nd Hoogeveen Open 2018"]
[Site "Hoogeveen"]
[Date "2018.10.23"]
[Round "5"]
[White "Pham, Khoi"]
[Black "Bertholee, Rob"]
[Result "0-1"]
[ECO "B84"]
[WhiteElo "2153"]
[BlackElo "2334"]
[Annotator "NA"]
[PlyCount "82"]
[EventDate "2018.10.20"]
[EventType "swiss"]
[EventCountry "NED"]
[SourceTitle "playchess.com"]
[Source "ChessBase"]
[SourceQuality "1"]
[TimeControl "40/5400+30:1800+30"]

1. e4 {[%emt 0:00:00]} c5 {[%emt 0:00:00]} 2. Nf3 {[%emt 0:00:00]} e6 {[%emt 0:00:00]} 3. d4 {[%emt 0:00:00]} cxd4 {[%emt 0:00:00]} 4. Nxd4 {[%emt 0:00:00]} Nf6 {[%emt 0:00:00]} 5. Nc3 {[%emt 0:00:56]} d6 {[%emt 0:00:00]} 6. Be2 {[%emt 0:00:26]} a6 {[%emt 0:00:00]} 7. O-O {[%emt 0:00:28]} Qc7 {[%emt 0:00:00]} 8. Be3 {[%emt 0:00:23]} b5 {[%emt 0:00:20]} 9. a3 {[%emt 0:04:20] LiveBook: 62 Games} Bb7 {[%emt 0:00:07]} 10. Qd3 {[%emt 0:20:15] B84: Sicilian Scheveningen: 6 Be2 a6, lines without early Be3} (10. Bd3 Nbd7 11. f4 g6 12. Kh1 Bg7 13. Qf3 Nc5 14. Rae1 O-O 15. Bg1 Rae8 16. Nb3 Nfd7 17. Qh3 f5 18. exf5 exf5 19. Nxc5 dxc5 {½-½ (45) Gabrielian,A (2545)-Shomoev,A (2560) Dombai 2013}) 10... Nbd7 {[%emt 0:02:15]} 11. f3 {[%emt 0:02:24]} d5 {[%emt 0:02:28]} 12. exd5 {[%emt 0:02:35]} Nxd5 {[%emt 0:00:06]} 13. Nxd5 {[%emt 0:00:55]} Bxd5 {[%emt 0:00:02]} 14. Qd2 {[%emt 0:01:43]} Nb6 {[%emt 0:18:56]} 15. b3 $146 {[%emt 0:08:57]} ({Predecessor:} 15. Bf2 Bd6 16. h3 O-O {0-1 (63) Mesar,D (1900)-Jezidzic,G (2010) Podturen 2018}) 15... Bc5 {[%emt 0:21:10]} 16. Kh1 {[%emt 0:03:33]} O-O {[%emt 0:00:51]} 17. a4 {[%emt 0:12:27]} b4 {[%emt 0:06:45]} 18. Rac1 {[%emt 0:00:24]} Rfd8 {[%emt 0:09:24]} 19. c4 {[%emt 0:03:09]} Bb7 {[%emt 0:00:29]} 20. f4 {[%emt 0:09:00]} Rd7 {[%emt 0:03:33]} 21. Qb2 {[%emt 0:05:37]} Rad8 {[%emt 0:09:12]} 22. Nc2 {[%emt 0:00:35]} Bxe3 {[%emt 0:00:03]} 23. Nxe3 {[%emt 0:00:22]} Qc5 {[%emt 0:00:06]} 24. Qe5 {[%emt 0:09:58]} Qxe5 {[%emt 0:01:20]} 25. fxe5 {[%emt 0:00:05]} Rd2 {[%emt 0:00:11]} 26. Bf3 {[%emt 0:05:18]} Bxf3 {[%emt 0:00:20]} 27. gxf3 {[%emt 0:00:30]} Nd7 {[%emt 0:06:39]} 28. c5 {[%emt 0:02:07]} Nxe5 {[%emt 0:00:08]} 29. Nc4 {[%emt 0:00:21]} Nxc4 $17 {[%emt 0:01:56]} 30. Rxc4 {[%emt 0:00:06]} a5 {[%emt 0:00:48]} 31. c6 {[%emt 0:00:49]} R2d5 {[%emt 0:06:13]} 32. Rfc1 {[%emt 0:03:25]} Kf8 {[%emt 0:00:13]} 33. Rc5 {[%emt 0:01:14]} Ke7 {[%emt 0:01:04]} 34. Rxd5 {[%emt 0:00:52]} exd5 {[%emt 0:00:03]} 35. Rc5 {[%emt 0:00:32]} d4 {[%emt 0:03:03]} 36. Rxa5 {[%emt 0:02:03]} Kd6 {[%emt 0:00:29]} 37. Kg1 {[%emt 0:00:15]} d3 {[%emt 0:02:46]} 38. Kf1 {[%emt 0:00:41]} Re8 {[%emt 0:00:14]} 39. c7 {[%emt 0:01:22]} d2 {[%emt 0:00:20]} 40. c8=N+ {[%emt 0:00:47]} Kc7 {[%emt 0:01:13]} 41. Rc5+ {[%emt 0:01:19]} Kb8 {[%emt 0:00:34]} 0-1

[Event "22nd Hoogeveen Open 2018"]
[Site "Hoogeveen"]
[Date "2018.10.23"]
[Round "5"]
[White "Mellema, Andries"]
[Black "Van Kooten, Luuk"]
[Result "0-1"]
[ECO "B06"]
[WhiteElo "2140"]
[BlackElo "2320"]
[Annotator "NA"]
[PlyCount "94"]
[EventDate "2018.10.20"]
[EventType "swiss"]
[EventCountry "NED"]
[SourceTitle "playchess.com"]
[Source "ChessBase"]
[SourceQuality "1"]
[TimeControl "40/5400+30:1800+30"]

1. e4 {[%emt 0:00:00]} g6 {[%emt 0:00:01]} 2. d4 {[%emt 0:00:00]} Bg7 {[%emt 0:00:16]} 3. Nc3 {[%emt 0:00:00]} d6 {[%emt 0:00:36]} 4. Be3 {[%emt 0:00:02]} a6 {[%emt 0:00:43]} 5. Qd2 {[%emt 0:03:01]} b5 {[%emt 0:01:22]} 6. h4 {[%emt 0:00:20]} h5 {[%emt 0:03:49]} 7. Nh3 {[%emt 0:03:06]} Bxh3 {[%emt 0:03:50]} 8. Rxh3 {[%emt 0:00:41] LiveBook: 13 Games} Nf6 {[%emt 0:00:44]} 9. f3 {[%emt 0:01:48]} ({White should play} 9. e5 $16 Ng4 10. e6) 9... Nbd7 $11 {[%emt 0:04:35]} 10. O-O-O {[%emt 0:18:03]} c6 {[%emt 0:08:33]} 11. Kb1 {[%emt 0:02:44]} Qc7 {[%emt 0:03:37]} 12. Be2 {[%emt 0:31:35]} Rb8 {[%emt 0:17:11]} 13. Rg1 {[%emt 0:10:29]} b4 {[%emt 0:06:55]} 14. Na4 {[%emt 0:06:26]} c5 {[%emt 0:17:36]} 15. b3 {[%emt 0:04:29]} cxd4 {[%emt 0:02:18]} 16. Bxd4 {[%emt 0:00:19]} O-O {[%emt 0:01:13]} 17. Bd3 {[%emt 0:07:23]} Qc6 {[%emt 0:04:41]} 18. Qe2 {[%emt 0:01:08]} e5 {[%emt 0:01:26]} 19. Bb2 {[%emt 0:00:01]} d5 {[%emt 0:00:16]} 20. g4 {[%emt 0:05:58]} dxe4 {[%emt 0:05:51]} 21. Bxe4 {[%emt 0:01:02]} Nxe4 {[%emt 0:00:14]} 22. Qxe4 {[%emt 0:00:37]} Qxe4 {[%emt 0:01:29]} 23. fxe4 {[%emt 0:00:11]} hxg4 {[%emt 0:02:29]} 24. Rxg4 {[%emt 0:00:28]} Nf6 {[%emt 0:01:01]} 25. Rg2 {[%emt 0:00:15]} Nxe4 {[%emt 0:04:59]} 26. Re3 {[%emt 0:00:52]} Nf6 {[%emt 0:03:42]} 27. Rxe5 {[%emt 0:00:47]} Rbd8 {[%emt 0:01:40]} 28. Re1 {[%emt 0:01:05]} Rfe8 {[%emt 0:00:11]} 29. Rh1 {[%emt 0:00:48]} Rd5 {[%emt 0:01:01]} 30. Nb6 {[%emt 0:00:39]} Rh5 {[%emt 0:00:17]} 31. Nc4 {[%emt 0:00:26]} Re4 {[%emt 0:00:36]} 32. Rf1 {[%emt 0:00:08]} Nd5 {[%emt 0:01:12]} 33. Bxg7 {[%emt 0:00:11]} Kxg7 {[%emt 0:00:11]} 34. Rxf7+ {[%emt 0:00:17]} Kxf7 {[%emt 0:00:10]} 35. Nd6+ {[%emt 0:00:04]} Kg7 {[%emt 0:00:39]} 36. Nxe4 {[%emt 0:00:05]} Rxh4 {[%emt 0:00:07]} 37. Nf2 {[%emt 0:00:55]} Kf6 {[%emt 0:01:43]} 38. Kb2 {[%emt 0:01:24]} g5 {[%emt 0:00:18]} 39. a3 {[%emt 0:00:30]} a5 {[%emt 0:00:21]} 40. axb4 {[%emt 0:00:44]} axb4 {[%emt 0:00:07]} 41. Nd1 {[%emt 0:05:04]} Rd4 {[%emt 0:04:35]} 42. Rg1 {[%emt 0:06:25]} Rd2 {[%emt 0:03:56]} 43. Kc1 {[%emt 0:00:41]} Re2 {[%emt 0:00:50]} 44. Rg3 {[%emt 0:01:16]} Kf5 {[%emt 0:05:54]} 45. Rd3 {[%emt 0:08:12]} Nf4 {[%emt 0:07:36]} 46. Rd8 {[%emt 0:04:30]} g4 {[%emt 0:01:54]} 47. Rd2 {[%emt 0:07:38]} Re1 {[%emt 0:02:29]} 0-1

[Event "22nd Hoogeveen Open 2018"]
[Site "Hoogeveen"]
[Date "2018.10.23"]
[Round "5"]
[White "Thrish Karthik"]
[Black "Colijn, Stefan"]
[Result "0-1"]
[ECO "B01"]
[WhiteElo "2116"]
[BlackElo "2340"]
[Annotator "NA"]
[PlyCount "124"]
[EventDate "2018.10.20"]
[EventType "swiss"]
[EventCountry "NED"]
[SourceTitle "playchess.com"]
[Source "ChessBase"]
[SourceQuality "1"]
[TimeControl "40/5400+30:1800+30"]

1. e4 {[%emt 0:00:00]} d5 {[%emt 0:00:26]} 2. exd5 {[%emt 0:00:00]} Qxd5 {[%emt 0:00:03]} 3. Nc3 {[%emt 0:00:00]} Qa5 {[%emt 0:00:16]} 4. d4 {[%emt 0:00:11]} c6 {[%emt 0:00:02]} 5. Nf3 {[%emt 0:00:49]} Bg4 {[%emt 0:00:45]} 6. h3 {[%emt 0:02:47]} Bh5 {[%emt 0:09:28] LiveBook: 11 Games [#]} 7. Be2 {[%emt 0:10:03] B01: Scandinavian Defence} ({Better is} 7. g4 $1 $16 {[%cal Rg4h5]} Bg6 8. h4 (8. Ne5 Nf6 9. Nc4 Qc7 10. Qf3 e6 11. Bf4 Qd8 12. O-O-O Bb4 13. a3 Be7 14. Ne5 Nd5 15. Nxd5 exd5 16. Nxg6 hxg6 {1-0 (32) Fedorchuk,S (2599)-Vass,F (2352) Warsaw 2006})) 7... Nf6 {[%emt 0:05:18]} 8. Ne5 {[%emt 0:06:11]} Bg6 {[%emt 0:06:52]} 9. O-O {[%emt 0:03:29]} e6 {[%emt 0:02:52]} 10. Bf4 {[%emt 0:07:39]} Be7 {[%emt 0:02:43]} 11. a3 $146 {[%emt 0:10:34]} ({Predecessor:} 11. Nxg6 hxg6 12. Bf3 Nbd7 13. Re1 a6 14. Ne4 Nxe4 15. Rxe4 Qd8 16. c4 {1-0 (64) Cavadini,N-Rickenbach,J Mendrisio 1989}) 11... O-O {[%emt 0:07:20]} 12. Nxg6 {[%emt 0:06:53]} hxg6 {[%emt 0:05:23]} 13. Qd3 {[%emt 0:02:56]} Rd8 {[%emt 0:04:21]} 14. Qg3 {[%emt 0:07:28]} Nh5 {[%emt 0:05:39]} 15. Bxh5 {[%emt 0:02:10]} Qxh5 {[%emt 0:03:49]} 16. Rad1 {[%emt 0:05:17]} Qf5 {[%emt 0:04:16]} 17. Bc7 {[%emt 0:04:23]} Rc8 {[%emt 0:00:44]} 18. Bxb8 {[%emt 0:00:13]} Raxb8 {[%emt 0:00:24]} 19. Qd3 {[%emt 0:00:07]} Rd8 $11 {[%emt 0:00:57]} 20. Qxf5 {[%emt 0:03:25]} gxf5 {[%emt 0:00:07]} 21. Ne2 {[%emt 0:02:04]} Rd7 {[%emt 0:00:10]} 22. b4 {[%emt 0:07:09]} Rbd8 {[%emt 0:03:00]} 23. Rd3 {[%emt 0:03:39]} g6 {[%emt 0:04:48]} 24. Rfd1 {[%emt 0:01:31]} Bf6 {[%emt 0:00:20]} 25. f4 {[%emt 0:01:52]} Kf8 {[%emt 0:00:23]} 26. g3 {[%emt 0:04:08]} a5 {[%emt 0:05:28]} 27. b5 {[%emt 0:06:26]} cxb5 {[%emt 0:02:30]} 28. Rb3 {[%emt 0:00:25]} Bxd4+ {[%emt 0:10:05]} 29. Rxd4 {[%emt 0:00:21]} Rxd4 {[%emt 0:00:02]} 30. Nxd4 {[%emt 0:00:01]} Rxd4 {[%emt 0:00:07]} 31. Rxb5 {[%emt 0:00:06]} Ra4 {[%emt 0:00:49]} 32. Rb3 {[%emt 0:02:01]} Rc4 {[%emt 0:00:58]} 33. Rxb7 {[%emt 0:01:31]} Rxc2 {[%emt 0:00:08]} 34. Rb5 {[%emt 0:00:19]} Rc3 {[%emt 0:00:41]} 35. Rxa5 {[%emt 0:00:04]} Rxg3+ {[%emt 0:00:05]} 36. Kh2 {[%emt 0:00:03]} Rf3 {[%emt 0:00:33]} 37. Ra4 {[%emt 0:00:26]} Ke7 {[%emt 0:00:22]} 38. Kg2 {[%emt 0:00:05]} Re3 {[%emt 0:00:10]} 39. Ra7+ {[%emt 0:00:09]} Kf6 {[%emt 0:00:51]} 40. a4 {[%emt 0:01:18]} Re4 {[%emt 0:06:37]} 41. Kf3 {[%emt 0:04:46]} g5 {[%emt 0:02:41]} 42. fxg5+ {[%emt 0:01:40]} Kxg5 {[%emt 0:00:02]} 43. a5 {[%emt 0:02:57]} Ra4 {[%emt 0:00:14]} 44. a6 {[%emt 0:04:28]} Ra3+ {[%emt 0:00:04]} 45. Kg2 {[%emt 0:00:03]} Ra2+ {[%emt 0:01:08]} 46. Kf3 {[%emt 0:02:06]} e5 {[%emt 0:03:57]} 47. h4+ {[%emt 0:01:45]} Kxh4 {[%emt 0:00:17]} 48. Rxf7 {[%emt 0:00:03]} Ra3+ {[%emt 0:00:10]} 49. Ke2 {[%emt 0:07:40]} Kg4 {[%emt 0:00:06]} 50. a7 {[%emt 0:01:01]} e4 {[%emt 0:00:44]} 51. Rh7 {[%emt 0:02:05]} Kf4 {[%emt 0:00:20]} 52. Rh4+ {[%emt 0:00:28]} Ke5 {[%emt 0:00:06]} 53. Rh7 {[%emt 0:00:12]} Ra2+ {[%emt 0:00:10]} 54. Kf1 {[%emt 0:02:39]} f4 {[%emt 0:00:06]} 55. Rf7 {[%emt 0:05:55]} e3 {[%emt 0:00:10]} 56. Re7+ {[%emt 0:00:01]} Kf5 {[%emt 0:00:04]} 57. Kg1 {[%emt 0:01:50]} Kg4 {[%emt 0:00:10]} 58. Rg7+ {[%emt 0:00:30]} Kf3 {[%emt 0:00:08]} 59. Re7 {[%emt 0:00:07]} Ra1+ {[%emt 0:00:09]} 60. Kh2 {[%emt 0:00:04]} Kf2 {[%emt 0:00:34]} 61. Rg7 {[%emt 0:00:41]} f3 {[%emt 0:00:20]} 62. Rg1 {[%emt 0:00:39]} Rxa7 {[%emt 0:00:15]} 0-1

[Event "22nd Hoogeveen Open 2018"]
[Site "Hoogeveen"]
[Date "2018.10.23"]
[Round "5"]
[White "Hilwerda, Jonas"]
[Black "Kokje, Joris"]
[Result "1/2-1/2"]
[ECO "B56"]
[WhiteElo "2109"]
[BlackElo "2232"]
[Annotator "NA"]
[PlyCount "102"]
[EventDate "2018.10.20"]
[EventType "swiss"]
[EventCountry "NED"]
[SourceTitle "playchess.com"]
[Source "ChessBase"]
[SourceQuality "1"]
[TimeControl "40/5400+30:1800+30"]

1. e4 {[%emt 0:00:00]} c5 {[%emt 0:00:00]} 2. Nf3 {[%emt 0:00:00]} d6 {[%emt 0:00:00]} 3. d4 {[%emt 0:00:00]} cxd4 {[%emt 0:00:00]} 4. Nxd4 {[%emt 0:00:00]} Nf6 {[%emt 0:00:00]} 5. Nc3 {[%emt 0:00:00]} a6 {[%emt 0:00:00]} 6. Nb3 {[%emt 0:00:00]} Nc6 {[%emt 0:02:29]} 7. Be3 {[%emt 0:00:54] B56: Sizilianisch (Abweichung von Sozin- und Richter/Rauser-Variante)} Ng4 $146 {[%emt 0:05:30]} 8. Bd2 {[%emt 0:00:22] LiveBook: 14 Games} h5 {[%emt 0:08:43]} 9. Be2 {[%emt 0:10:40]} b5 {[%emt 0:06:29]} 10. a4 {[%emt 0:19:20]} b4 {[%emt 0:08:55]} 11. Nd5 {[%emt 0:01:21]} e6 {[%emt 0:00:46]} 12. Bxg4 {[%emt 0:05:44]} hxg4 {[%emt 0:01:05]} 13. Nxb4 {[%emt 0:01:46]} Nxb4 {[%emt 0:03:25]} 14. Bxb4 {[%emt 0:00:36]} Qb6 {[%emt 0:02:00]} 15. Bc3 {[%emt 0:18:44]} g3 {[%emt 0:04:36]} 16. fxg3 {[%emt 0:04:13]} Rxh2 {[%emt 0:01:23]} 17. Rxh2 {[%emt 0:00:16]} Qg1+ {[%emt 0:00:05]} 18. Kd2 {[%emt 0:00:46]} Qxh2 {[%emt 0:00:12]} 19. Qf3 {[%emt 0:01:07]} Qh6+ {[%emt 0:02:52]} 20. Ke2 {[%emt 0:03:56]} Qg6 {[%emt 0:03:35]} 21. Na5 $11 {[%emt 0:07:02]} Bd7 {[%emt 0:02:05]} 22. Rh1 {[%emt 0:03:09]} Bxa4 {[%emt 0:02:45]} 23. b3 {[%emt 0:04:55]} Bd7 {[%emt 0:00:32]} 24. Kd1 {[%emt 0:00:29]} Rc8 {[%emt 0:02:53]} 25. Kc1 {[%emt 0:02:07]} d5 {[%emt 0:11:07]} 26. exd5 {[%emt 0:01:39]} Qg5+ {[%emt 0:00:37]} 27. Kb2 {[%emt 0:01:39]} Qxd5 {[%emt 0:00:33]} 28. Qxd5 {[%emt 0:06:18]} exd5 {[%emt 0:00:53]} 29. Rh8 {[%emt 0:00:26]} f6 {[%emt 0:01:30]} 30. Bb4 {[%emt 0:00:06]} Kf7 {[%emt 0:00:11]} 31. Rxf8+ {[%emt 0:01:26]} Rxf8 {[%emt 0:00:20]} 32. Bxf8 {[%emt 0:00:05]} Kxf8 {[%emt 0:00:06]} 33. Kc3 {[%emt 0:00:54]} Ke7 {[%emt 0:01:01]} 34. Kd4 {[%emt 0:00:56]} Kd6 {[%emt 0:01:25]} 35. Nb7+ {[%emt 0:00:43]} Kc6 {[%emt 0:00:31]} 36. Nc5 {[%emt 0:00:51]} Bc8 {[%emt 0:00:12]} 37. Nd3 {[%emt 0:01:06]} a5 {[%emt 0:01:23]} 38. Nf4 {[%emt 0:02:36]} Bf5 {[%emt 0:01:17]} 39. Kc3 {[%emt 0:01:36]} g6 {[%emt 0:04:11]} 40. g4 {[%emt 0:00:23]} Be4 {[%emt 0:01:12]} 41. g3 {[%emt 0:07:00]} d4+ {[%emt 0:07:08]} 42. Kxd4 {[%emt 0:03:45]} Bxc2 {[%emt 0:00:21]} 43. Kc3 {[%emt 0:01:12]} Bb1 {[%emt 0:06:13]} 44. b4 {[%emt 0:04:43]} axb4+ {[%emt 0:03:51]} 45. Kxb4 {[%emt 0:00:45]} Kd6 {[%emt 0:00:27]} 46. g5 {[%emt 0:03:09]} fxg5 {[%emt 0:00:47]} 47. Nh3 {[%emt 0:00:31]} Ke5 {[%emt 0:01:49]} 48. Nxg5 {[%emt 0:00:55]} Kf5 {[%emt 0:00:06]} 49. Nf3 {[%emt 0:07:20]} Kg4 {[%emt 0:01:40]} 50. Ne5+ {[%emt 0:00:22]} Kxg3 {[%emt 0:00:08]} 51. Nxg6 {[%emt 0:00:04]} Bxg6 {[%emt 0:00:35]} 1/2-1/2

[Event "22nd Hoogeveen Open 2018"]
[Site "Hoogeveen"]
[Date "2018.10.23"]
[Round "5"]
[White "De Boer, Bas"]
[Black "Murray, David"]
[Result "1/2-1/2"]
[ECO "A57"]
[WhiteElo "2102"]
[BlackElo "2222"]
[Annotator "NA"]
[PlyCount "53"]
[EventDate "2018.10.20"]
[EventType "swiss"]
[EventCountry "NED"]
[SourceTitle "playchess.com"]
[Source "ChessBase"]
[SourceQuality "1"]
[TimeControl "40/5400+30:1800+30"]

1. d4 {[%emt 0:00:00]} Nf6 {[%emt 0:00:00]} 2. c4 {[%emt 0:00:00]} c5 {[%emt 0:00:00]} 3. d5 {[%emt 0:00:00]} b5 {[%emt 0:00:00]} 4. cxb5 {[%emt 0:00:00]} a6 {[%emt 0:00:00]} 5. b6 {[%emt 0:00:48]} Qxb6 {[%emt 0:01:04]} 6. Nc3 {[%emt 0:00:34]} g6 {[%emt 0:00:54]} 7. e4 {[%emt 0:01:37]} d6 {[%emt 0:00:13]} 8. Nf3 {[%emt 0:00:19]} Bg7 {[%emt 0:01:38]} 9. Be2 {[%emt 0:00:10]} Bg4 {[%emt 0:01:47]} 10. Nd2 {[%emt 0:07:11]} Bxe2 {[%emt 0:00:32] LiveBook: 4 Games} 11. Qxe2 {[%emt 0:00:03]} Nbd7 {[%emt 0:02:09]} 12. Nc4 {[%emt 0:03:07]} Qd8 {[%emt 0:01:48]} 13. O-O {[%emt 0:01:54]} O-O $14 {[%emt 0:04:07]} 14. Rb1 {[%emt 0:11:38]} Nb6 {[%emt 0:06:23]} 15. Ne3 {[%emt 0:05:38]} Ne8 {[%emt 0:05:33]} 16. g4 {[%emt 0:07:36]} Nc7 {[%emt 0:02:15]} 17. Bd2 {[%emt 0:02:30]} Nb5 {[%emt 0:04:15]} 18. Nxb5 {[%emt 0:05:25]} axb5 {[%emt 0:00:09]} 19. Qxb5 {[%emt 0:00:15]} Rxa2 {[%emt 0:01:35]} 20. Ba5 {[%emt 0:00:29]} Qa8 {[%emt 0:16:08]} 21. Bxb6 {[%emt 0:01:02]} Rb8 {[%emt 0:01:21]} 22. Nc4 {[%emt 0:01:56]} Ra4 {[%emt 0:06:33]} 23. b4 {[%emt 0:02:33]} Bd4 {[%emt 0:03:33]} 24. Qc6 {[%emt 0:02:20]} Qa6 {[%emt 0:07:17]} 25. Ba5 {[%emt 0:00:17]} Qb5 {[%emt 0:05:30]} 26. Nb6 {[%emt 0:01:58]} Qe2 {[%emt 0:02:15]} 27. Qxa4 {[%emt 0:07:58]} 1/2-1/2